fUSD/lending_fUSD_20250110
["ID","MTS","AMOUNT","RATE_DAILY","PERIOD"]
[348421948,1736524260521,-500.0,0.00010105,2]
[348421949,1736524260532,-500.0,0.00010105,2]
[348421950,1736524260544,-1593.59,0.00010105,2]
[348421951,1736524260555,-500.0,0.00010105,2]
[348421952,1736524260565,-1043.52,0.00010105,2]
[348421953,1736524260576,-500.0,0.00010105,2]
[348421954,1736524260586,-876.27,0.00010105,2]
[348421955,1736524260596,-500.0,0.00010105,2]
[348421956,1736524260606,-2264.41,0.00010105,2]
[348421957,1736524260617,-1584.14,0.00010105,2]
[348421958,1736524260627,-1819.95,0.00010105,2]
[348421959,1736524260638,-500.0,0.00010105,2]
[348421960,1736524260648,-1002.74,0.00010105,2]
[348421961,1736524260657,-3030.78,0.00010105,2]
[348421962,1736524260668,-2135.04,0.00010105,2]
[348421963,1736524260677,-500.0,0.00010105,2]
[348421964,1736524260687,-1215.89,0.00010105,2]
[348421965,1736524260698,-1651.51,0.00010105,2]
[348421966,1736524260708,-1582.69,0.00010105,2]
[348421967,1736524260718,-3156.38,0.00010105,2]
[348421968,1736524260728,-500.0,0.00010105,2]
[348421969,1736524260739,-873.09,0.00010105,2]
[348421970,1736524260749,-965.26,0.00010105,2]
[348421971,1736524260759,-507.74,0.00010105,2]
[348421972,1736524260770,-570.26,0.00010105,2]
[348421973,1736524260781,-1258.78,0.00010105,2]
[348421974,1736524260792,-1471.01,0.00010105,2]
[348421975,1736524260802,-1409.72,0.00010105,2]
[348421976,1736524260812,-761.8,0.00010106,2]
[348421977,1736524260823,-500.0,0.00010106,2]
[348421978,1736524260834,-939.91,0.00010106,2]
[348421979,1736524260845,-961.78,0.00010106,2]
[348421980,1736524260855,-822.48,0.00010106,2]
[348421981,1736524260865,-566.63,0.00010106,2]
[348421982,1736524260875,-500.0,0.00010106,2]
[348421983,1736524260888,-500.0,0.00010106,2]
[348421984,1736524260899,-745.23,0.00010106,2]
[348421985,1736524260909,-1068.97,0.00010106,2]
[348421986,1736524260922,-822.16,0.00010106,2]
[348421987,1736524260933,-858.49,0.00010106,2]
[348421988,1736524260943,-500.0,0.00010106,2]
[348421989,1736524260953,-846.15,0.00010106,2]
[348421990,1736524260965,-500.0,0.00010106,2]
[348421991,1736524260976,-500.0,0.00010106,2]
[348421992,1736524260987,-500.0,0.00010106,2]
[348421993,1736524260997,-500.0,0.00010106,2]
[348421994,1736524261008,-500.0,0.00010106,2]
[348421995,1736524261017,-1010.23,0.00010106,2]
[348421996,1736524261028,-1140.26,0.00010106,2]
[348421997,1736524261039,-549.36963031,0.00010106,2]
[348421998,1736524261049,-709.1,0.00010106,2]
[348421999,1736524261060,-500.0,0.00010106,2]
[348422000,1736524261070,-933.11,0.00010106,2]
[348422001,1736524261081,-1046.94,0.00010106,2]
[348422002,1736524261092,-602.2,0.00010106,2]
[348422003,1736524261104,-888.35,0.00010106,2]
[348422004,1736524261114,-500.0,0.00010106,2]
[348422005,1736524261125,-500.0,0.00010106,2]
[348422006,1736524261139,-500.0,0.00010106,2]
[348422007,1736524261150,-627.38,0.00010106,2]
[348422008,1736524261160,-1166.68,0.00010106,2]
[348422009,1736524261171,-500.0,0.00010106,2]
[348422010,1736524261181,-967.77,0.00010106,2]
[348422011,1736524261191,-500.0,0.00010106,2]
[348422012,1736524261201,-500.0,0.00010106,2]
[348422013,1736524261212,-1005.93,0.00010106,2]
[348422014,1736524261222,-781.9,0.00010106,2]
[348422015,1736524261232,-296.51020426,0.00010106,2]
[348422016,1736524261243,-2150.01,0.00010106,2]
[348422017,1736524261253,-500.0,0.00010106,2]
[348422018,1736524261263,-1052.34,0.00010106,2]
[348422019,1736524261274,-912.91,0.00010106,2]
[348422020,1736524261284,-1815.27,0.00010106,2]
[348422021,1736524261295,-180.60042484,0.00010106,2]
[348422022,1736524261305,-856.07,0.00010106,2]
[348422023,1736524261315,-966.55,0.00010106,2]
[348422024,1736524261326,-1861.8,0.00010106,2]
[348422025,1736524261337,-688.9,0.00010106,2]
[348422026,1736524261348,-1068.54,0.00010106,2]
[348422027,1736524261358,-978.06,0.00010106,2]
[348422028,1736524261368,-500.0,0.00010106,2]
[348422029,1736524261382,-587.28,0.00010106,2]
[348422030,1736524261392,-877.06,0.00010106,2]
[348422031,1736524261402,-766.28,0.00010106,2]
[348422032,1736524261413,-2611.4,0.00010106,2]
[348422033,1736524261424,-1556.83,0.00010106,2]
[348422034,1736524261434,-826.2,0.00010106,2]
[348422035,1736524261445,-7495.58,0.00010106,2]
[348422036,1736524261455,-784.4,0.00010106,2]
[348422037,1736524261467,-797.2,0.00010106,2]
[348422038,1736524261477,-915.4,0.00010106,2]
[348422039,1736524261488,-1078.79,0.00010106,2]
[348422040,1736524261499,-1363.41,0.00010106,2]
[348422041,1736524261509,-506.37325306,0.00010106,2]
[348422042,1736524261523,-1339.84,0.00010106,2]
[348422043,1736524261533,-1267.14,0.00010106,2]
[348422044,1736524261544,-1698.13,0.00010106,2]
[348422045,1736524261554,-949.94,0.00010106,2]
[348422046,1736524261565,-1813.78,0.00010106,2]
[348422047,1736524261575,-500.0,0.00010106,2]
[348422048,1736524261586,-500.0,0.00010106,2]
[348422049,1736524261599,-5166.39,0.00010106,2]
[348422050,1736524261611,-3593.7,0.00010106,2]
[348422051,1736524261622,-1020.92,0.00010106,2]
[348422052,1736524261634,-1241.67,0.00010106,2]
[348422053,1736524261645,-742.95,0.00010106,2]
[348422054,1736524261657,-675.3,0.00010106,2]
[348422055,1736524261668,-1052.3,0.00010106,2]
[348422056,1736524261679,-792.94,0.00010106,2]
[348422057,1736524261691,-675.43,0.00010107,2]
[348422058,1736524261715,-714.54,0.00010107,2]
[348422059,1736524261729,-500.0,0.00010107,2]
[348422060,1736524261739,-3297.03,0.00010107,2]
[348422061,1736524261750,-764.62,0.00010107,2]
[348422062,1736524261760,-500.0,0.00010107,2]
[348422063,1736524261771,-621.27,0.00010107,2]
[348422064,1736524261783,-500.0,0.00010107,2]
[348422065,1736524261793,-500.0,0.00010107,2]
[348422066,1736524261804,-500.0,0.00010107,2]
[348422067,1736524261815,-535.32,0.00010107,2]
[348422068,1736524261825,-1434.01,0.00010107,2]
[348422069,1736524261835,-500.0,0.00010107,2]
[348422070,1736524261846,-635.49,0.00010107,2]
[348422071,1736524261856,-1010.79,0.00010107,2]
[348422072,1736524261867,-500.0,0.00010107,2]
[348422073,1736524261878,-1419.64,0.00010107,2]
[348422074,1736524261891,-609.13,0.00010107,2]
[348422075,1736524261901,-1774.64,0.00010107,2]
[348422076,1736524261911,-1039.15,0.00010107,2]
[348422077,1736524261926,-528.76,0.00010107,2]
[348422078,1736524261937,-994.56,0.00010107,2]
[348422079,1736524261948,-593.02,0.00010107,2]
[348422080,1736524261958,-814.5,0.00010107,2]
[348422081,1736524262177,-1240.07,0.00010107,2]
[348422082,1736524262187,-868.17,0.00010107,2]
[348422083,1736524262198,-953.37,0.00010107,2]
[348422084,1736524262209,-306.81741518,0.00010107,2]
[348422085,1736524262220,-500.0,0.00010107,2]
[348422086,1736524262231,-789.01,0.00010107,2]
[348422087,1736524262242,-1265.34,0.00010107,2]
[348422088,1736524262253,-500.0,0.00010107,2]
[348422089,1736524262263,-500.0,0.00010107,2]
[348422090,1736524262273,-3093.1,0.00010107,2]
[348422091,1736524262283,-864.42,0.00010107,2]
[348422092,1736524262294,-500.0,0.00010107,2]
[348422093,1736524262304,-500.0,0.00010107,2]
[348422094,1736524262314,-1402.75,0.00010107,2]
[348422095,1736524262324,-1766.75,0.00010107,2]
[348422096,1736524262333,-500.0,0.00010107,2]
[348422097,1736524262344,-555.91,0.00010107,2]
[348422098,1736524262354,-652.78,0.00010107,2]
[348422099,1736524262364,-608.24,0.00010107,2]
[348422100,1736524262376,-4401.25,0.00010107,2]
[348422101,1736524262391,-500.0,0.00010107,2]
[348422102,1736524262401,-500.0,0.00010107,2]
[348422103,1736524262411,-500.0,0.00010107,2]
[348422104,1736524262421,-500.0,0.00010107,2]
[348422105,1736524262431,-880.99,0.00010107,2]
[348422106,1736524262442,-377.82074006,0.00010107,2]
[348422107,1736524262453,-4953.9,0.00010107,2]
[348422108,1736524262463,-500.0,0.00010107,2]
[348422109,1736524262474,-500.0,0.00010107,2]
[348422110,1736524262484,-1040.05,0.00010107,2]
[348422111,1736524262493,-500.0,0.00010107,2]
[348422112,1736524262503,-500.0,0.00010107,2]
[348422113,1736524262513,-728.84,0.00010107,2]
[348422114,1736524262523,-787.78,0.00010107,2]
[348422115,1736524262532,-901.88,0.00010107,2]
[348422116,1736524262542,-895.76,0.00010107,2]
[348422117,1736524262553,-677.22,0.00010107,2]
[348422118,1736524262563,-500.0,0.00010107,2]
[348422119,1736524262573,-2539.7,0.00010107,2]
[348422120,1736524262583,-812.91,0.00010107,2]
[348422121,1736524262594,-500.0,0.00010107,2]
[348422122,1736524262604,-500.0,0.00010107,2]
[348422123,1736524262614,-626.16,0.00010107,2]
[348422124,1736524262624,-500.0,0.00010107,2]
[348422125,1736524262641,-500.0,0.00010107,2]
[348422126,1736524262651,-544.97,0.00010107,2]
[348422127,1736524262662,-500.0,0.00010107,2]
[348422128,1736524262672,-500.0,0.00010107,2]
[348422129,1736524262682,-707.45,0.00010107,2]
[348422130,1736524262692,-5186.84,0.00010107,2]
[348422131,1736524262702,-500.0,0.00010107,2]
[348422132,1736524262712,-500.0,0.00010107,2]
[348422133,1736524262722,-686.88,0.00010107,2]
[348422134,1736524262732,-500.0,0.00010107,2]
[348422135,1736524262743,-500.0,0.00010107,2]
[348422136,1736524262753,-657.79,0.00010107,2]
[348422137,1736524262762,-500.0,0.00010107,2]
[348422138,1736524262778,-496.18,0.00010107,2]
[348422139,1736524262788,-856.71,0.00010107,2]
[348422140,1736524262799,-783.7,0.00010107,2]
[348422141,1736524262809,-794.78,0.00010107,2]
[348422142,1736524262819,-1062.86,0.00010107,2]
[348422143,1736524262829,-160.65887208,0.00010107,2]
[348422144,1736524262839,-3899.76,0.00010107,2]
[348422145,1736524262850,-500.0,0.00010107,2]
[348422146,1736524262861,-500.0,0.00010107,2]
[348422147,1736524262871,-500.0,0.00010107,2]
[348422148,1736524262884,-634.52,0.00010107,2]
[348422149,1736524262894,-500.0,0.00010107,2]
[348422150,1736524262904,-629.73532637,0.00010107,2]
[348422151,1736524262917,-1022.03,0.00010107,2]
[348422152,1736524262928,-939.3,0.00010107,2]
[348422153,1736524262938,-691.24,0.00010107,2]
[348422154,1736524262947,-500.0,0.00010107,2]
[348422155,1736524262959,-4054.05,0.00010107,2]
[348422156,1736524262969,-813.45,0.00010107,2]
[348422157,1736524262980,-552.25887005,0.00010107,2]
[348422158,1736524262991,-500.0,0.00010107,2]
[348422159,1736524263001,-500.0,0.00010107,2]
[348422160,1736524263011,-541.17641048,0.00010107,2]
[348422161,1736524263021,-423.52410409,0.00010107,2]
[348422162,1736524263031,-1362.38,0.00010107,2]
[348422163,1736524263041,-603.28936929,0.00010107,2]
[348422164,1736524263051,-500.0,0.00010107,2]
[348422165,1736524263062,-1051.14,0.00010107,2]
[348422166,1736524263073,-500.0,0.00010107,2]
[348422167,1736524263083,-309.12998997,0.00010107,2]
[348422168,1736524263095,-1335.65,0.00010107,2]
[348422169,1736524263106,-941.46,0.00010107,2]
[348422170,1736524263118,-1314.49,0.00010107,2]
[348422171,1736524263129,-500.0,0.00010107,2]
[348422172,1736524263147,-500.0,0.00010107,2]
[348422173,1736524263158,-500.0,0.00010107,2]
[348422174,1736524263168,-500.0,0.00010107,2]
[348422175,1736524263179,-2098.32,0.00010107,2]
[348422176,1736524263190,-1156.61,0.00010107,2]
[348422177,1736524263200,-659.09,0.00010107,2]
[348422178,1736524263210,-1381.15,0.00010107,2]
[348422179,1736524263221,-500.0,0.00010107,2]
[348422180,1736524263232,-500.0,0.00010107,2]
[348422181,1736524263242,-500.0,0.00010107,2]
[348422182,1736524263252,-1912.15,0.00010107,2]
[348422183,1736524263263,-511.82,0.00010107,2]
[348422184,1736524263273,-951.49,0.00010107,2]
[348422185,1736524263284,-622.11,0.00010107,2]
[348422186,1736524263295,-500.0,0.00010107,2]
[348422187,1736524263306,-500.0,0.00010108,2]
[348422188,1736524263317,-500.0,0.00010108,2]
[348422189,1736524263328,-500.0,0.00010108,2]
[348422190,1736524263339,-952.88,0.00010108,2]
[348422191,1736524263349,-500.0,0.00010108,2]
[348422192,1736524263359,-500.0,0.00010108,2]
[348422193,1736524263370,-705.22,0.00010108,2]
[348422194,1736524263384,-974.31,0.00010108,2]
[348422195,1736524263395,-248.42354454,0.00010108,2]
[348422196,1736524263406,-1038.13,0.00010108,2]
[348422197,1736524263417,-500.0,0.00010108,2]
[348422198,1736524263427,-579.82,0.00010108,2]
[348422199,1736524263438,-1012.33,0.00010108,2]
[348422200,1736524263447,-648.63,0.00010108,2]
[348422201,1736524263458,-500.0,0.00010108,2]
[348422202,1736524263468,-571.87,0.00010108,2]
[348422203,1736524263478,-500.0,0.00010108,2]
[348422204,1736524263488,-1172.84,0.00010108,2]
[348422205,1736524263498,-796.64,0.00010108,2]
[348422206,1736524263509,-974.54,0.00010108,2]
[348422207,1736524263519,-500.0,0.00010108,2]
[348422208,1736524263529,-1273.5,0.00010108,2]
[348422209,1736524263539,-659.75,0.00010108,2]
[348422210,1736524263550,-886.68,0.00010108,2]
[348422211,1736524263560,-500.0,0.00010108,2]
[348422212,1736524263571,-500.0,0.00010108,2]
[348422213,1736524263582,-1963.72,0.00010108,2]
[348422214,1736524263594,-6187.03,0.00010108,2]
[348422215,1736524263605,-1822.9,0.00010108,2]
[348422216,1736524263616,-2565.68,0.00010108,2]
[348422217,1736524263627,-3150.34,0.00010108,2]
[348422218,1736524263643,-8130.88,0.00010109,2]
[348422219,1736524263654,-357.251,0.00010109,2]
[348422220,1736524263664,-4721.83,0.00010109,2]
[348422221,1736524263675,-2272.62,0.00010109,2]
[348422222,1736524263686,-1591.49,0.00010109,2]
[348422223,1736524263697,-2329.78,0.00010109,2]
[348422224,1736524263708,-1432.42,0.00010109,2]
[348422225,1736524263719,-1975.6,0.0001012,2]
[348422226,1736524263730,-642.46,0.00010137,2]
[348422227,1736524263742,-2603.25117454,0.00010137,2]
[348422228,1736524263753,-1883.34,0.00010147,2]
[348422229,1736524263763,-1704.97,0.00010147,2]
[348422230,1736524263774,-772.13,0.00010147,2]
[348422231,1736524263785,-4013.17,0.00010147,2]
[348422232,1736524263796,-1747.53,0.00010221,2]
[348422233,1736524263808,-500.0,0.00010221,2]
[348422234,1736524263819,-1348.6,0.00010221,2]
[348422235,1736524263831,-3203.72,0.00010221,2]
[348422236,1736524263842,-1647.23,0.00010221,2]
[348422237,1736524263853,-1103.85,0.00010221,2]
[348422238,1736524263863,-1226.84,0.00010221,2]
[348422239,1736524263874,-843.28,0.00010221,2]
[348422240,1736524263890,-1796.31,0.00010221,2]
[348422241,1736524263900,-1043.14,0.00010221,2]
[348422242,1736524263912,-1316.27,0.00010221,2]
[348422243,1736524263923,-1311.99,0.00010221,2]
[348422244,1736524263935,-2157.87,0.00010221,2]
[348422245,1736524263945,-2366.16,0.00010221,2]
[348422246,1736524263959,-2149.91,0.00010221,2]
[348422247,1736524263969,-1452.0,0.00010228,2]
[348422248,1736524263979,-2603.25117454,0.00010241,2]
[348422249,1736524263991,-1000.0,0.00010262,2]
[348422250,1736524264002,-208.33693386,0.00010272,2]
[348422251,1736524264012,-1000.0,0.00010274,2]
[348422252,1736524264022,-584.27805932,0.00010287,2]
[348422253,1736524264033,-8696.06,0.00010321,2]
[348422254,1736524264043,-1684.62,0.00010321,2]
[348422255,1736524264053,-1188.63,0.00010321,2]
[348422256,1736524264063,-1197.62,0.00010321,2]
[348422257,1736524264073,-2275.37,0.00010321,2]
[348422258,1736524264083,-662.96,0.00010321,2]
[348422259,1736524264095,-1191.38,0.00010321,2]
[348422260,1736524264106,-433.0,0.0001033,2]
[348422261,1736524264117,-2603.25117454,0.00010345,2]
[348422262,1736524264129,-500.0,0.00010379,2]
[348422263,1736524264144,-500.0,0.00010379,2]
[348422264,1736524264154,-500.0,0.00010379,2]
[348422265,1736524264165,-500.0,0.00010379,2]
[348422266,1736524264175,-500.0,0.00010379,2]
[348422267,1736524264186,-1593.59,0.00010379,2]
[348422268,1736524264197,-500.0,0.00010379,2]
[348422269,1736524264207,-1043.52,0.00010379,2]
[348422270,1736524264217,-67337.63203749,0.00010379,2]
[348422271,1736524264228,-500.0,0.00010379,2]
[348422272,1736524264240,-876.27,0.00010379,2]
[348422273,1736524264250,-500.0,0.00010379,2]
[348422274,1736524264261,-2264.41,0.00010379,2]
[348422275,1736524264271,-1584.14,0.00010379,2]
[348422276,1736524264282,-1819.95,0.00010379,2]
[348422277,1736524264293,-490.92215827,0.00010379,2]
[348422278,1736524264303,-1002.74,0.00010379,2]
[348422279,1736524264314,-3030.78,0.00010379,2]
[348422280,1736524264324,-2135.04,0.00010379,2]
[348422281,1736524264334,-500.0,0.00010379,2]
[348422282,1736524264345,-1215.89,0.00010379,2]
[348422283,1736524264355,-1651.51,0.00010379,2]
[348422284,1736524264366,-1582.69,0.00010379,2]
[348422285,1736524264377,-3156.38,0.00010379,2]
[348422286,1736524264392,-500.0,0.00010379,2]
[348422287,1736524264403,-873.09,0.00010379,2]
[348422288,1736524264415,-965.26,0.00010379,2]
[348422289,1736524264427,-507.74,0.00010379,2]
[348422290,1736524264437,-570.26,0.00010379,2]
[348422291,1736524264449,-1258.78,0.00010379,2]
[348422292,1736524264461,-1471.01,0.00010379,2]
[348422293,1736524264472,-761.8,0.0001038,2]
[348422294,1736524264483,-500.0,0.0001038,2]
[348422295,1736524264495,-939.91,0.0001038,2]
[348422296,1736524264507,-961.78,0.0001038,2]
[348422297,1736524264518,-822.48,0.0001038,2]
[348422298,1736524264528,-566.63,0.0001038,2]
[348422299,1736524264538,-500.0,0.0001038,2]
[348422300,1736524264548,-500.0,0.0001038,2]
[348422301,1736524264559,-745.23,0.0001038,2]
[348422302,1736524264572,-1068.97,0.0001038,2]
[348422303,1736524264583,-822.16,0.0001038,2]
[348422304,1736524264595,-858.49,0.0001038,2]
[348422305,1736524264606,-310.93899356,0.0001038,2]
[348422306,1736524264618,-846.15,0.0001038,2]
[348422307,1736524264639,-500.0,0.0001038,2]
[348422308,1736524264651,-500.0,0.0001038,2]
[348422309,1736524264662,-500.0,0.0001038,2]
[348422310,1736524264674,-500.0,0.0001038,2]
[348422311,1736524264685,-500.0,0.0001038,2]
[348422312,1736524264697,-1010.23,0.0001038,2]
[348422313,1736524264708,-1140.26,0.0001038,2]
[348422314,1736524264720,-709.1,0.0001038,2]
[348422315,1736524264731,-606.99434691,0.0001038,2]
[348422316,1736524264742,-933.11,0.0001038,2]
[348422317,1736524264852,-1046.94,0.0001038,2]
[348422318,1736524264863,-602.2,0.0001038,2]
[348422319,1736524264873,-888.35,0.0001038,2]
[348422320,1736524264888,-500.0,0.0001038,2]
[348422321,1736524264898,-515.74749608,0.0001038,2]
[348422322,1736524264909,-500.0,0.0001038,2]
[348422323,1736524264922,-627.38,0.0001038,2]
[348422324,1736524264932,-1166.68,0.0001038,2]
[348422325,1736524264942,-500.0,0.0001038,2]
[348422326,1736524264952,-967.77,0.0001038,2]
[348422327,1736524264962,-500.0,0.0001038,2]
[348422328,1736524264973,-500.0,0.0001038,2]
[348422329,1736524264983,-1005.93,0.0001038,2]
[348422330,1736524264992,-781.9,0.0001038,2]
[348422331,1736524265006,-2150.01,0.0001038,2]
[348422332,1736524265017,-500.0,0.0001038,2]
[348422333,1736524265026,-1052.34,0.0001038,2]
[348422334,1736524265036,-912.91,0.0001038,2]
[348422335,1736524265046,-1815.27,0.0001038,2]
[348422336,1736524265056,-856.07,0.0001038,2]
[348422337,1736524265066,-966.55,0.0001038,2]
[348422338,1736524265076,-1861.8,0.0001038,2]
[348422339,1736524265087,-688.9,0.0001038,2]
[348422340,1736524265098,-1068.54,0.0001038,2]
[348422341,1736524265109,-978.06,0.0001038,2]
[348422342,1736524265125,-500.0,0.0001038,2]
[348422343,1736524265138,-587.28,0.0001038,2]
[348422344,1736524265149,-877.06,0.0001038,2]
[348422345,1736524265159,-766.28,0.0001038,2]
[348422346,1736524265169,-2611.4,0.0001038,2]
[348422347,1736524265180,-1556.83,0.0001038,2]
[348422348,1736524265191,-826.2,0.0001038,2]
[348422349,1736524265201,-7495.58,0.0001038,2]
[348422350,1736524265212,-784.4,0.0001038,2]
[348422351,1736524265223,-797.2,0.0001038,2]
[348422352,1736524265233,-915.4,0.0001038,2]
[348422353,1736524265243,-1078.79,0.0001038,2]
[348422354,1736524265254,-1363.41,0.0001038,2]
[348422355,1736524265264,-1339.84,0.0001038,2]
[348422356,1736524265274,-1267.14,0.0001038,2]
[348422357,1736524265284,-1698.13,0.0001038,2]
[348422358,1736524265293,-949.94,0.0001038,2]
[348422359,1736524265303,-1813.78,0.0001038,2]
[348422360,1736524265314,-500.0,0.0001038,2]
[348422361,1736524265324,-500.0,0.0001038,2]
[348422362,1736524265335,-5166.39,0.0001038,2]
[348422363,1736524265345,-3593.7,0.0001038,2]
[348422364,1736524265355,-1020.92,0.0001038,2]
[348422365,1736524265365,-1241.67,0.0001038,2]
[348422366,1736524265375,-742.95,0.0001038,2]
[348422367,1736524265389,-675.3,0.0001038,2]
[348422368,1736524265400,-1052.3,0.0001038,2]
[348422369,1736524265410,-792.94,0.0001038,2]
[348422370,1736524265420,-675.43,0.00010381,2]
[348422371,1736524265430,-714.54,0.00010381,2]
[348422372,1736524265441,-500.0,0.00010381,2]
[348422373,1736524265450,-3297.03,0.00010381,2]
[348422374,1736524265461,-764.62,0.00010381,2]
[348422375,1736524265471,-500.0,0.00010381,2]
[348422376,1736524265481,-621.27,0.00010381,2]
[348422377,1736524265492,-500.0,0.00010381,2]
[348422378,1736524265501,-500.0,0.00010381,2]
[348422379,1736524265512,-500.0,0.00010381,2]
[348422380,1736524265522,-535.32,0.00010381,2]
[348422381,1736524265532,-1434.01,0.00010381,2]
[348422382,1736524265542,-500.0,0.00010381,2]
[348422383,1736524265552,-635.49,0.00010381,2]
[348422384,1736524265562,-1010.79,0.00010381,2]
[348422385,1736524265571,-500.0,0.00010381,2]
[348422386,1736524265581,-1419.64,0.00010381,2]
[348422387,1736524265592,-609.13,0.00010381,2]
[348422388,1736524265603,-1774.64,0.00010381,2]
[348422389,1736524265613,-1039.15,0.00010381,2]
[348422390,1736524265623,-528.76,0.00010381,2]
[348422391,1736524265637,-994.56,0.00010381,2]
[348422392,1736524265652,-593.02,0.00010381,2]
[348422393,1736524265662,-814.5,0.00010381,2]
[348422394,1736524265672,-1240.07,0.00010381,2]
[348422395,1736524265682,-868.17,0.00010381,2]
[348422396,1736524265692,-953.37,0.00010381,2]
[348422397,1736524265702,-500.0,0.00010381,2]
[348422398,1736524265712,-789.01,0.00010381,2]
[348422399,1736524265722,-1265.34,0.00010381,2]
[348422400,1736524265731,-500.0,0.00010381,2]
[348422401,1736524265742,-500.0,0.00010381,2]
[348422402,1736524265753,-3093.1,0.00010381,2]
[348422403,1736524265764,-864.42,0.00010381,2]
[348422404,1736524265774,-500.0,0.00010381,2]
[348422405,1736524265784,-500.0,0.00010381,2]
[348422406,1736524265794,-1402.75,0.00010381,2]
[348422407,1736524265804,-1766.75,0.00010381,2]
[348422408,1736524265814,-500.0,0.00010381,2]
[348422409,1736524265824,-555.91,0.00010381,2]
[348422410,1736524265835,-652.78,0.00010381,2]
[348422411,1736524265845,-608.24,0.00010381,2]
[348422412,1736524265856,-4401.25,0.00010381,2]
[348422413,1736524265866,-500.0,0.00010381,2]
[348422414,1736524265875,-500.0,0.00010381,2]
[348422415,1736524265890,-500.0,0.00010381,2]
[348422416,1736524265900,-500.0,0.00010381,2]
[348422417,1736524265910,-880.99,0.00010381,2]
[348422418,1736524265921,-4953.9,0.00010381,2]
[348422419,1736524265940,-500.0,0.00010381,2]
[348422420,1736524265954,-500.0,0.00010381,2]
[348422421,1736524265965,-1040.05,0.00010381,2]
[348422422,1736524265976,-500.0,0.00010381,2]
[348422423,1736524265986,-500.0,0.00010381,2]
[348422424,1736524265996,-728.84,0.00010381,2]
[348422425,1736524266005,-787.78,0.00010381,2]
[348422426,1736524266015,-901.88,0.00010381,2]
[348422427,1736524266024,-895.76,0.00010381,2]
[348422428,1736524266035,-677.22,0.00010381,2]
[348422429,1736524266044,-500.0,0.00010381,2]
[348422430,1736524266056,-2539.7,0.00010381,2]
[348422431,1736524266066,-812.91,0.00010381,2]
[348422432,1736524266076,-500.0,0.00010381,2]
[348422433,1736524266086,-500.0,0.00010381,2]
[348422434,1736524266096,-626.16,0.00010381,2]
[348422435,1736524266105,-371.42691468,0.00010381,2]
[348422436,1736524266115,-500.0,0.00010381,2]
[348422437,1736524266125,-544.97,0.00010381,2]
[348422438,1736524266137,-500.0,0.00010381,2]
[348422439,1736524266147,-500.0,0.00010381,2]
[348422440,1736524266157,-707.45,0.00010381,2]
[348422441,1736524266166,-5186.84,0.00010381,2]
[348422442,1736524266176,-500.0,0.00010381,2]
[348422443,1736524266197,-500.0,0.00010381,2]
[348422444,1736524266207,-686.88,0.00010381,2]
[348422445,1736524266217,-500.0,0.00010381,2]
[348422446,1736524266226,-500.0,0.00010381,2]
[348422447,1736524266237,-657.79,0.00010381,2]